bitfinex/quotes_ETHUSD_20241003
["timestamp","ask_amount","ask_price","bid_price","bid_amount"]
[1727990356496,8.0541,2354.1,2354.0,0.0072]
[1727990361873,7.2479,2354.1,2354.0,0.0072]
[1727990362089,4.2479,2354.1,2354.0,0.0072]
[1727990362290,8.49567,2354.2,2354.0,0.1615]
[1727990362601,8.49567,2354.2,2354.0,0.223465]
[1727990362602,4.24783,2354.2,2354.0,0.223465]
[1727990362773,4.2479,2354.1,2354.0,0.223465]
[1727990365610,4.24783,2354.2,2354.0,0.223465]
[1727990366096,8.49567,2354.2,2354.0,0.223465]
[1727990367659,4.24783,2354.2,2354.1,0.7043]
[1727990368003,4.24772,2354.2,2354.1,0.76602916]
[1727990370497,4.24757,2354.3,2354.1,0.76602916]
[1727990370498,4.24757,2354.3,2354.2,0.1543]
[1727990370717,4.24738,2354.4,2354.2,0.1615]
[1727990370900,4.24738,2354.4,2354.3,0.5572]
[1727990371402,4.24738,2354.4,2354.3,0.61849935]
[1727990372670,4.24738,2354.4,2354.3,0.77279935]
[1727990372920,4.247,2354.6,2354.5,0.55]
[1727990373067,4.24693,2354.7,2354.5,0.5572]
[1727990373397,4.24656,2354.9,2354.6,0.1543]
[1727990373709,4.24664,2354.8,2354.7,0.55]
[1727990374066,4.24664,2354.8,2354.7,0.61815925]
[1727990375612,4.24628,2355.0,2354.9,0.55]
[1727990375770,4.24628,2355.0,2354.9,0.5572]
[1727990375975,4.3613977,2355.1,2355.0,0.7043]
[1727990376410,4.3613977,2355.1,2355.0,0.76492149]
[1727990377472,0.1152677,2355.1,2355.0,0.76492149]
[1727990377866,0.1152677,2355.1,2355.0,1.26678864]
[1727990378502,0.1152677,2355.1,2355.0,0.76492149]
[1727990378913,4.3613677,2355.1,2355.0,0.76492149]
[1727990379307,0.1152677,2355.1,2355.0,0.76492149]
[1727990380595,4.3613677,2355.1,2355.0,0.76492149]
[1727990380809,4.3613677,2355.1,2355.0,0.06062149]
[1727990382094,4.3613677,2355.1,2355.0,0.61062149]
[1727990385288,4.3613677,2355.1,2355.0,0.06062149]
[1727990389525,4.3613677,2355.1,2355.0,0.61062149]
[1727990390983,4.3613677,2355.1,2355.0,0.06062149]
[1727990390984,5.1945677,2355.1,2355.0,0.06062149]
[1727990391190,5.1945677,2355.1,2354.9,0.0072]
[1727990391191,4.24628,2355.0,2354.9,0.0072]
[1727990392091,4.3613677,2355.1,2355.0,0.1543]
[1727990392291,0.1152677,2355.1,2355.0,0.7043]
[1727990393243,0.1152677,2355.1,2355.0,1.200096]
[1727990393813,0.1152677,2355.1,2355.0,0.7043]
[1727990394904,0.1152677,2355.1,2355.0,0.7591994]
[1727990396246,0.1152677,2355.1,2355.0,5.0054794]
[1727990397304,0.1152677,2355.1,2355.0,8.4313794]
[1727990398223,4.2442,2356.2,2355.7,4.24492]
[1727990398513,4.24394,2356.3,2356.1,0.0072]
[1727990398719,4.24394,2356.3,2356.2,0.0072]
[1727990398918,4.24394,2356.3,2356.2,0.06079968]
[1727990399200,4.24367,2356.5,2356.2,0.06079968]
[1727990399421,4.24367,2356.5,2356.4,0.0072]
[1727990399844,4.24367,2356.5,2356.4,0.06064903]
[1727990400644,4.24343,2356.6,2356.5,0.7043]
[1727990400645,4.2434,2356.6,2356.5,0.7043]
[1727990401039,4.2434,2356.6,2356.5,0.75743115]
[1727990401418,4.2434,2356.6,2356.5,0.60313115]
[1727990401845,5.0766,2356.6,2356.5,0.05313115]
[1727990402048,6.008592,2356.6,2356.5,0.05313115]
[1727990402234,4.24358,2356.5,2356.4,0.0072]
[1727990403320,5.01338,2356.5,2356.4,0.0072]
[1727990403554,8.01338,2356.5,2356.4,0.0072]
[1727990403922,8.01338,2356.5,2355.1,1.67569857]
[1727990403923,4.24584,2355.3,2355.1,1.83719857]
[1727990404153,4.24584,2355.3,2355.1,0.1615]
[1727990404626,4.24592,2355.2,2354.8,0.1615]
[1727990404823,4.24584,2355.3,2354.8,0.1615]
[1727990405136,4.24584,2355.3,2354.9,3.0]
[1727990405322,4.24584,2355.3,2354.9,3.55]
[1727990405525,4.24584,2355.3,2355.1,0.55]
[1727990406968,8.49172,2355.3,2355.1,0.55]
[1727990407252,4.24603,2355.2,2355.0,0.795805]
[1727990407458,4.24603,2355.2,2354.8,0.1615]
[1727990407459,4.2461,2355.2,2354.8,0.1615]
[1727990407823,4.24577,2355.3,2354.8,0.1615]
[1727990408023,4.2461,2355.1,2354.8,0.1615]
[1727990408263,4.2461,2355.1,2354.9,0.55]
[1727990408567,4.24577,2355.3,2354.9,0.55]
[1727990408568,4.24577,2355.3,2354.9,1.345828]
[1727990408774,4.24594,2355.2,2354.9,1.345828]
[1727990409938,4.24594,2355.2,2355.0,0.05266544]
[1727990410769,4.2461,2355.1,2355.0,0.05266544]
[1727990411555,4.24569,2355.4,2355.0,0.05266544]
[1727990411733,4.24575,2355.3,2355.0,0.05266544]
[1727990411933,4.24575,2355.3,2355.0,0.53758198]
[1727990413332,4.24594,2355.2,2355.0,0.53758198]
[1727990414280,4.24594,2355.2,2355.0,0.05266544]
[1727990414473,8.49195,2355.2,2355.0,0.05266544]
[1727990414779,4.24594,2355.2,2355.0,0.05266544]
[1727990415272,8.49197,2355.2,2355.0,0.05266544]
[1727990415640,4.2461,2355.1,2355.0,0.60266544]
[1727990415848,4.24594,2355.2,2355.0,0.60266544]
[1727990416288,8.49204,2355.2,2355.0,0.60266544]
[1727990416645,4.2461,2355.1,2355.0,0.60266544]
[1727990420195,4.24573,2355.4,2355.1,0.55]
[1727990420368,0.7698,2355.5,2355.1,0.55]
[1727990420369,4.24592,2355.3,2355.2,0.60154498]
[1727990421859,4.24592,2355.3,2355.2,0.05154498]
[1727990422066,4.24638,2355.0,2354.9,0.55]
[1727990422365,4.24656,2354.9,2354.5,3.1615]
[1727990422560,4.24656,2354.9,2354.6,0.783463]
[1727990422794,8.49318,2354.9,2354.6,0.783463]
[1727990423205,4.24656,2354.9,2354.6,0.783463]
[1727990423637,4.24664,2354.8,2354.7,0.55]
[1727990423814,4.24656,2354.9,2354.7,0.9994963]
[1727990423976,4.24656,2354.9,2354.7,0.55]
[1727990424409,8.49311,2354.9,2354.7,0.55]
[1727990424595,4.24655,2354.9,2354.7,0.55]
[1727990424806,4.24655,2354.9,2354.8,0.60045271]
[1727990430092,4.24655,2354.9,2354.8,0.05045271]
[1727990430624,4.24694,2354.7,2354.4,0.55]
[1727990430841,4.24694,2354.7,2354.6,0.55]
[1727990431045,4.24694,2354.7,2354.5,0.37115]
[1727990431840,5.06743,2354.7,2354.3,0.55]
[1727990432137,9.31434,2354.7,2354.3,0.55]
[1727990432356,5.06743,2354.7,2354.3,0.55]
[1727990432795,9.3144,2354.7,2354.3,0.55]
[1727990432989,4.24701,2354.6,2354.5,0.55]
[1727990435237,4.24712,2354.6,2354.1,0.1615]
[1727990435443,4.24718,2354.5,2354.2,0.55]
[1727990435647,4.24712,2354.6,2354.2,0.55]
[1727990435648,4.24737,2354.4,2354.2,0.55]
[1727990436134,4.24737,2354.4,2354.1,0.1615]
[1727990436309,4.24754,2354.3,2353.9,7.40965]
[1727990436510,4.24737,2354.4,2354.0,1.14817164]
[1727990436511,8.49485,2354.4,2354.0,1.14817164]
[1727990436939,4.24737,2354.4,2354.0,1.14817164]
[1727990437297,8.49484,2354.4,2354.1,0.55]
[1727990437525,4.24737,2354.4,2354.1,0.55]
[1727990437930,4.24758,2354.3,2354.1,0.55]
[1727990438133,4.24737,2354.4,2354.1,0.55]
[1727990438438,4.24737,2354.4,2354.1,1.46078216]
[1727990438638,4.24768,2354.3,2354.1,1.46078216]
[1727990438935,4.24768,2354.3,2354.0,0.55]
[1727990439538,4.24775,2354.2,2354.0,0.55]
[1727990439925,4.24775,2354.2,2354.1,0.09402492]
[1727990445017,0.7998,2354.3,2354.1,0.09402492]
[1727990445385,5.04736,2354.3,2354.1,0.09402492]
[1727990446053,4.24772,2354.2,2354.1,0.09402492]
[1727990446261,4.24801,2354.1,2353.8,0.55]
[1727990446468,4.24801,2354.1,2353.9,0.355]
[1727990446620,4.24808,2354.0,2353.9,0.355]
[1727990446823,5.04806,2353.9,2353.4,0.5874]
[1727990447551,5.04806,2353.9,2353.4,0.1615]
[1727990448276,5.04818,2353.9,2353.3,4.24921]
[1727990448560,4.24848,2353.8,2353.4,0.866021]
[1727990449333,4.24848,2353.8,2353.5,0.55]
[1727990450510,4.24872,2353.7,2353.5,0.55]
[1727990451209,4.24909,2353.5,2353.3,0.55]
[1727990451386,4.24909,2353.5,2353.3,0.92115]
[1727990452246,4.24909,2353.5,2353.1,0.55]
[1727990452247,4.24917,2353.4,2353.1,0.55]
[1727990452685,5.01009,2353.5,2353.1,0.55]
[1727990452889,42.03864,2353.0,2352.9,8.32200635]
[1727990453044,40.3143989,2353.0,2352.9,8.87200635]
[1727990454075,39.84334862,2353.0,2352.9,8.87200635]
[1727990454257,39.84334862,2353.0,2352.9,10.22681799]
[1727990454978,39.84334862,2353.0,2352.9,13.31919932]
[1727990458625,39.84334862,2353.0,2352.9,9.24713297]
[1727990460630,39.84334862,2353.0,2352.9,1.44719297]
[1727990461527,39.84334862,2353.0,2352.9,5.69726297]
[1727990462495,4.24939,2353.3,2352.8,4.25015]
[1727990462704,4.24939,2353.3,2352.9,0.08945072]
[1727990464941,4.24856,2353.8,2353.1,4.07206635]
[1727990465152,0.7879,2353.8,2353.4,4.79907]
[1727990465357,7.24829,2353.9,2353.5,0.06399641]
[1727990465512,7.24829,2353.9,2353.5,0.15305759]
[1727990465711,7.24829,2353.9,2353.5,0.08906118]
[1727990466648,4.24846,2353.8,2353.5,0.08906118]
[1727990467364,4.24846,2353.8,2353.5,0.76537794]
[1727990467856,7.24829,2353.9,2353.5,0.76537794]
[1727990468856,4.24859,2353.8,2353.5,0.76537794]
[1727990469455,4.24863,2353.7,2353.5,0.76537794]
[1727990470152,4.24829,2353.9,2353.5,0.76537794]
[1727990470361,4.24846,2353.8,2353.5,0.76537794]
[1727990470720,4.24864,2353.7,2353.5,0.76537794]
[1727990472584,4.24864,2353.7,2353.5,0.08906118]
[1727990473890,4.24846,2353.8,2353.5,0.08906118]
[1727990474095,4.24881,2353.6,2353.5,0.08906118]
[1727990474467,4.24881,2353.6,2353.5,0.63906118]
[1727990477065,4.24865,2353.7,2353.5,0.63906118]
[1727990477882,4.24865,2353.7,2353.5,0.08906118]
[1727990478197,4.24881,2353.6,2353.3,0.0849719]
[1727990478397,4.24881,2353.6,2353.3,0.97154406]
[1727990480191,4.24865,2353.7,2353.3,8.22085406]
[1727990480444,4.24884,2353.6,2353.3,3.88657216]
[1727990480592,8.49743,2353.7,2353.3,3.88657216]
[1727990480927,4.24865,2353.7,2353.4,0.86045598]
[1727990481234,4.24877,2353.7,2353.4,0.86045598]
[1727990485033,4.24877,2353.7,2353.5,0.08887089]
[1727990486337,4.24829,2353.9,2353.5,0.08887089]
[1727990486509,4.24819,2354.0,2353.6,0.55]
[1727990486699,4.24819,2354.0,2353.7,0.08867765]
[1727990490100,8.49638,2354.0,2353.7,0.08867765]
[1727990490388,4.24819,2354.0,2353.7,0.08867765]
[1727990492709,7.31,2354.6,2353.7,0.08867765]
[1727990492710,0.7924,2354.3,2353.8,0.55]
[1727990492848,4.24736,2354.4,2354.1,1.87484341]
[1727990493048,0.7522,2354.6,2354.2,0.55]
[1727990493275,4.99898,2354.8,2354.4,4.79735]
[1727990493690,4.99893,2354.8,2354.5,0.0879604]
[1727990493868,4.24647,2354.9,2354.5,0.17289431]
[1727990494201,4.24664,2354.8,2354.5,0.0879604]
[1727990494502,8.49337,2354.8,2354.5,0.0879604]
[1727990494891,4.24684,2354.7,2354.5,0.0879604]
[1727990495671,4.24664,2354.8,2354.5,0.0879604]
[1727990496189,8.49346,2354.8,2354.5,0.0879604]
[1727990496392,4.24664,2354.8,2354.5,0.0879604]
[1727990497263,4.24691,2354.7,2354.5,0.0879604]
[1727990498504,4.24664,2354.8,2354.5,0.0879604]
[1727990498691,4.247,2354.6,2354.5,0.6379604]
[1727990499605,4.24664,2354.8,2354.5,0.6379604]
[1727990499824,4.24647,2354.9,2354.6,0.55]
[1727990500100,4.24664,2354.8,2354.6,0.55]
[1727990500263,4.24664,2354.8,2354.7,0.63456137]
[1727990503870,4.24664,2354.8,2354.7,0.08456137]
[1727990504065,4.24664,2354.8,2354.6,0.55]
[1727990504485,4.24664,2354.8,2354.7,0.08451644]
[1727990507909,4.24664,2354.8,2354.3,1.87484341]
[1727990508208,4.247,2354.6,2354.4,0.634749]
[1727990508977,4.68978957,2355.5,2355.0,0.55]
[1727990509313,4.24511,2355.7,2355.3,0.55]
[1727990509612,0.7835,2355.8,2355.6,1.87484341]
[1727990509875,5.02802,2356.0,2355.7,0.55]
[1727990510059,5.02802,2356.0,2355.7,0.63345488]
[1727990510683,4.24466,2355.9,2355.7,0.08345488]
[1727990510956,4.24484,2355.8,2355.5,1.87484341]
[1727990511228,4.24484,2355.8,2355.6,0.08338038]
[1727990511427,4.24502,2355.7,2355.6,0.08338038]
[1727990511778,4.24502,2355.7,2355.4,0.66707534]
[1727990511977,4.24502,2355.7,2355.6,0.08342182]
[1727990512181,4.24502,2355.7,2355.5,0.08349927]
[1727990512412,4.24502,2355.7,2355.6,0.08342182]
[1727990512819,4.24502,2355.7,2355.4,0.55]
[1727990513019,4.24502,2355.7,2355.6,0.08342182]
[1727990513227,4.24502,2355.7,2355.5,0.08349927]
[1727990513379,4.24502,2355.7,2355.6,0.08342182]
[1727990513579,4.24502,2355.7,2355.4,0.55]
[1727990513884,4.24502,2355.7,2355.5,0.08349927]
[1727990514084,4.2452,2355.6,2355.5,0.08349927]
[1727990515112,5.0287,2355.6,2355.5,0.08349927]
[1727990515295,4.24574,2355.3,2355.0,0.55]
[1727990515505,4.2454,2355.5,2355.2,0.55]
[1727990515506,4.24558,2355.4,2355.2,0.55]
[1727990515711,4.2454,2355.5,2355.2,0.55]
[1727990516725,0.7835,2356.0,2355.2,3.55]
[1727990516895,4.24531,2355.6,2355.2,3.55]
[1727990517096,8.49061,2355.6,2355.4,0.55]
[1727990517442,4.2453,2355.6,2355.4,0.55]
[1727990520003,4.24495,2355.8,2355.4,0.55]
[1727990520529,4.24467,2355.9,2355.6,0.55]
[1727990520907,4.24467,2355.9,2355.5,0.55]
[1727990521109,4.24467,2355.9,2355.7,0.55]
[1727990521546,9.27203,2356.2,2355.7,0.55]
[1727990521728,4.24447,2356.1,2355.7,0.55]
[1727990522036,4.24461,2356.0,2355.7,0.55]
[1727990522605,4.24461,2356.0,2355.9,0.55]
[1727990523108,4.24461,2356.0,2355.6,0.904091]
[1727990523109,4.24461,2356.0,2355.7,0.55]
[1727990523545,4.24432,2356.1,2355.8,0.05885211]
[1727990523840,4.24432,2356.1,2355.9,0.55]
[1727990524246,4.24401,2356.3,2355.9,0.55]
[1727990524443,4.24413,2356.2,2356.0,0.36088521]
[1727990524807,4.24412,2356.2,2356.0,0.36088521]
[1727990527066,4.2443,2356.1,2356.0,0.36088521]
[1727990527434,4.2443,2356.1,2356.0,0.91088521]
[1727990528673,4.2443,2356.1,2355.6,0.904091]
[1727990528674,4.24457,2356.0,2355.6,0.904091]
[1727990528872,4.24448,2356.0,2355.7,0.55]
[1727990529292,4.24466,2355.9,2355.7,0.55]
[1727990529994,4.24466,2355.9,2355.8,0.07973242]
[1727990530332,4.24466,2355.9,2355.5,4.24536]
[1727990530459,4.24466,2355.9,2355.8,0.0797565]
[1727990530656,4.24466,2355.9,2355.6,0.424536]
[1727990530861,4.24466,2355.9,2355.8,0.0797565]
[1727990531373,4.24493,2355.8,2355.6,0.424536]
[1727990531584,4.24493,2355.8,2355.7,0.07983394]
[1727990531775,4.24493,2355.8,2355.5,0.55]
[1727990531982,4.24493,2355.8,2355.6,0.07993891]
[1727990532677,4.24466,2355.9,2355.6,0.07993891]
[1727990533573,8.48947,2355.9,2355.6,0.07993891]
[1727990533774,4.24466,2355.9,2355.6,0.8674858]
[1727990534384,8.48942,2355.9,2355.6,0.8674858]
[1727990534898,4.24466,2355.9,2355.6,0.8674858]
[1727990538716,5.01992,2355.8,2355.6,0.07993891]
[1727990539426,4.24502,2355.7,2355.6,0.07993891]
[1727990540060,5.02066,2355.4,2355.0,7.46]
[1727990540266,5.02066,2355.4,2355.0,3.0]
[1727990540442,0.775,2355.4,2355.1,5.15790854]
[1727990540756,0.775,2355.4,2355.1,0.91182854]
[1727990541313,0.775,2355.4,2355.2,0.55]
[1727990544962,0.775,2355.4,2355.3,0.07803224]
[1727990545138,0.775,2355.4,2355.2,0.55]
[1727990545342,0.775,2355.4,2355.3,0.07803224]
[1727990545642,0.775,2355.4,2355.2,1.12078985]
[1727990545844,0.775,2355.4,2355.3,0.07803224]
[1727990546226,0.775,2355.4,2355.2,1.12078985]
[1727990546569,0.775,2355.4,2355.3,0.07803224]
[1727990546759,0.775,2355.4,2355.2,1.12078985]
[1727990547064,0.775,2355.4,2355.3,0.07803224]
[1727990547440,0.775,2355.4,2355.2,1.12078985]
[1727990547673,0.775,2355.4,2355.3,0.07803224]
[1727990548386,0.775,2355.4,2355.2,1.12078985]
[1727990548573,0.775,2355.4,2355.3,0.07803224]
[1727990548753,0.775,2355.4,2355.2,1.12078985]
[1727990548954,0.775,2355.4,2355.3,0.07803224]
[1727990549181,0.775,2355.4,2355.2,1.12078985]
[1727990549459,0.775,2355.4,2355.3,0.07803912]
[1727990549903,0.775,2355.4,2355.2,1.12078985]
[1727990550076,0.775,2355.4,2355.3,0.07803912]
[1727990550465,0.775,2355.4,2355.2,1.12078985]
[1727990550672,0.775,2355.4,2355.3,0.07803912]
[1727990551061,0.775,2355.4,2355.2,1.12078985]
[1727990551374,0.775,2355.4,2355.3,0.07803912]
[1727990551577,0.775,2355.4,2355.2,1.12078985]
[1727990551877,0.775,2355.4,2355.3,0.07803912]
[1727990552255,0.775,2355.4,2355.2,1.12078985]
[1727990552493,0.775,2355.4,2355.3,0.07803912]
[1727990552862,0.775,2355.4,2355.2,0.55]
[1727990553065,0.775,2355.4,2355.3,0.07811487]
[1727990553798,0.775,2355.4,2355.2,0.55]
[1727990553995,0.775,2355.4,2355.3,0.07811487]
[1727990554295,0.775,2355.4,2355.2,0.55]
[1727990554503,0.775,2355.4,2355.3,0.07811487]
[1727990554865,0.775,2355.4,2355.2,0.55]
[1727990555093,5.02056,2355.4,2355.3,0.07811487]
[1727990555628,5.02056,2355.4,2355.3,0.07812175]
[1727990555824,5.02056,2355.4,2355.0,0.55]
[1727990556126,5.02056,2355.4,2355.1,0.07827671]
[1727990562402,0.775,2355.4,2355.1,0.07827671]
[1727990562661,5.02059,2355.4,2355.1,0.07827671]
[1727990569017,0.775,2355.4,2355.1,0.07827671]
[1727990569514,5.0207,2355.4,2355.1,0.07827671]
[1727990571868,4.24487,2355.8,2355.1,0.07827671]
[1727990571869,5.04192,2355.2,2355.1,0.07827671]
[1727990572294,5.04192,2355.2,2354.7,4.24679]
[1727990572295,4.24612,2355.1,2354.7,0.55]
[1727990572900,4.24612,2355.1,2354.7,4.79681]
[1727990573096,4.24612,2355.1,2354.7,0.55]
[1727990574473,4.24612,2355.1,2354.7,4.79681]
[1727990574678,4.24612,2355.1,2354.8,1.09156654]
[1727990574874,4.24612,2355.1,2354.8,1.16512603]
[1727990585464,4.24631,2355.0,2354.8,1.16512603]
[1727990585663,4.24631,2355.0,2354.8,0.07355949]
[1727990586066,4.24631,2355.0,2354.7,0.55]
[1727990586373,4.24631,2355.0,2354.8,0.07363495]
[1727990586668,4.24631,2355.0,2354.7,0.55]
[1727990586867,4.24631,2355.0,2354.9,0.07355745]
[1727990587053,4.24631,2355.0,2354.8,0.07363495]
[1727990587258,4.24631,2355.0,2354.8,0.80763281]
[1727990587439,4.24631,2355.0,2354.9,0.07355745]
[1727990593118,4.2465,2354.9,2354.6,1.87195537]
[1727990593292,0.796,2355.2,2354.9,0.07353345]
[1727990593293,4.24612,2355.1,2354.9,0.07353345]
[1727990593492,4.24612,2355.1,2354.8,1.87195537]
[1727990593691,5.0378,2355.4,2355.0,0.07345596]
[1727990593900,5.0378,2355.4,2355.0,0.55]
[1727990594091,5.0378,2355.4,2355.1,0.07337847]
[1727990595221,4.2458,2355.3,2355.1,0.07337847]
[1727990596315,4.24592,2355.2,2355.1,0.07337847]
[1727990607965,4.24592,2355.2,2355.1,0.07198983]
[1727990617582,4.2458,2355.3,2355.1,0.07198983]
[1727990617799,4.24592,2355.2,2355.1,0.07198983]
[1727990627799,4.2458,2355.3,2355.1,0.07198983]
[1727990629231,4.24592,2355.2,2355.1,0.07198983]
[1727990629526,4.24612,2355.1,2354.8,1.33373774]
[1727990629709,5.00222,2355.1,2354.8,1.33373774]
[1727990629895,5.00222,2355.1,2354.8,2.33373026]
[1727990633291,4.24592,2355.2,2354.8,2.33373026]
[1727990633292,4.24592,2355.2,2355.0,0.55]
[1727990634827,4.24592,2355.2,2355.1,0.07328072]
[1727990641192,4.24614,2355.1,2354.9,1.33373774]
[1727990641512,4.24614,2355.1,2355.0,0.0733582]
[1727990642315,4.24592,2355.2,2355.0,0.0733582]
[1727990642521,4.24592,2355.2,2355.0,1.40709594]
[1727990643409,4.24576,2355.3,2355.0,1.40709594]
[1727990644049,5.0018,2355.4,2355.0,2.37194044]
[1727990644255,4.9982,2355.8,2355.3,0.55]
[1727990644457,9.24314,2355.8,2355.4,3.20066684]
[1727990644598,4.99814,2355.8,2355.4,3.27368425]
[1727990644796,9.24309,2355.8,2355.5,0.98477412]
[1727990645207,9.24309,2355.8,2355.5,1.05771406]
[1727990645941,4.99814,2355.8,2355.5,1.05771406]
[1727990646145,4.24494,2355.8,2355.5,1.05771406]
[1727990646504,4.24504,2355.7,2355.5,0.07293994]
[1727990647424,4.24494,2355.8,2355.5,0.07293994]
[1727990647803,8.48987,2355.8,2355.5,0.07293994]
[1727990648035,4.24503,2355.7,2355.5,0.07293994]
[1727990653018,4.2452,2355.6,2355.5,0.07293994]
[1727990653419,4.2452,2355.6,2355.3,0.55]
[1727990653648,4.2452,2355.6,2355.5,0.07266549]
[1727990653859,4.2452,2355.6,2355.4,0.44780963]
[1727990654062,4.2452,2355.6,2355.5,0.07266549]
[1727990655265,4.24539,2355.5,2355.3,0.55]
[1727990655459,4.24539,2355.5,2355.2,0.55]
[1727990655659,4.24539,2355.5,2355.3,0.36263668]
[1727990656676,4.99834,2355.7,2355.3,0.36263668]
[1727990657234,4.24529,2355.6,2355.3,0.36263668]
[1727990659377,9.24348,2355.7,2355.3,0.36263668]
[1727990659739,4.24521,2355.6,2355.3,0.36263668]
[1727990661539,4.24521,2355.6,2355.2,0.55]
[1727990662669,4.99988,2355.5,2355.1,1.32871147]
[1727990662988,4.24578,2355.3,2355.0,0.55]
[1727990663138,4.24578,2355.3,2355.0,1.16250015]
[1727990663479,0.7544,2355.5,2355.0,0.55]
[1727990663480,4.24566,2355.4,2355.0,0.55]
[1727990663643,4.24578,2355.3,2354.9,0.55]
[1727990663844,4.24593,2355.2,2354.8,0.55]
[1727990664186,4.24593,2355.2,2354.8,4.7966]
[1727990664418,4.24575,2355.3,2354.8,4.7966]
[1727990664556,4.24575,2355.3,2354.8,6.19882738]
[1727990664949,4.24575,2355.3,2354.9,0.07065153]
[1727990665275,8.49132,2355.4,2354.9,0.07065153]
[1727990665790,4.24577,2355.3,2354.9,0.07065153]
[1727990665956,8.49135,2355.4,2354.9,4.31709153]
[1727990666298,0.7544,2355.2,2354.9,0.07065153]
[1727990667798,5.00037,2355.2,2354.9,0.07065153]
[1727990669152,1.679021,2355.2,2354.9,0.07065153]
[1727990669502,1.679021,2355.2,2354.7,0.55]
[1727990669656,4.24626,2355.1,2355.0,0.07057403]
[1727990669858,4.24626,2355.1,2354.7,0.55]
[1727990670090,4.24626,2355.1,2355.0,0.07057403]
[1727990670391,4.24626,2355.1,2354.7,0.55]
[1727990670895,4.24626,2355.1,2354.8,0.07072903]
[1727990671101,4.24626,2355.1,2354.7,0.55]
[1727990671391,4.24626,2355.1,2354.9,0.0699811]
[1727990671713,4.24626,2355.1,2355.0,0.0699036]
[1727990671922,4.24626,2355.1,2354.7,0.55]
[1727990672080,4.24626,2355.1,2355.0,0.0699036]
[1727990672413,4.24626,2355.1,2354.7,1.99487738]
[1727990672573,4.24626,2355.1,2355.0,0.0699036]
[1727990672773,4.24626,2355.1,2354.7,0.55]
[1727990672968,4.24626,2355.1,2355.0,0.0699036]
[1727990673188,4.24626,2355.1,2354.7,0.55]
[1727990673409,4.24626,2355.1,2355.0,0.0699036]
[1727990673917,4.24626,2355.1,2354.7,1.81704568]
[1727990674220,4.24626,2355.1,2355.0,0.0699036]
[1727990674523,0.7609,2356.1,2355.2,0.55]
[1727990674687,0.7609,2356.1,2355.6,4.24509]
[1727990674887,0.7609,2356.1,2355.6,4.91179454]
[1727990675107,0.7609,2356.1,2355.7,0.06936133]
[1727990675302,5.00523,2356.1,2355.7,0.06936133]
[1727990678015,0.7609,2356.1,2355.7,0.06936133]
[1727990678207,4.24449,2356.0,2355.7,0.06936133]
[1727990680189,4.24449,2356.0,2355.7,0.80970045]
[1727990680990,8.48906,2356.0,2355.7,0.80970045]
[1727990681404,4.24449,2356.0,2355.7,0.80970045]
[1727990681625,8.48908,2356.0,2355.7,0.80970045]
[1727990682124,4.24449,2356.0,2355.7,0.80970045]
[1727990682544,4.24423,2356.2,2355.8,0.55]
[1727990682704,5.00416,2356.7,2356.1,4.24412]
[1727990682905,5.00416,2356.7,2356.1,6.11607537]
[1727990683105,5.00416,2356.7,2356.2,0.06503528]
[1727990683309,4.24344,2356.6,2356.2,0.06503528]
[1727990683490,4.24326,2356.7,2356.3,0.55]
[1727990683695,4.24326,2356.7,2356.3,0.61451784]
[1727990684003,4.24326,2356.7,2356.3,2.57134261]
[1727990684518,7.31,2357.1,2356.3,6.81517261]
[1727990684519,4.24305,2356.8,2356.3,6.81517261]
[1727990684725,4.2426,2357.1,2356.6,0.55]
[1727990684924,4.2426,2357.1,2356.7,0.66654254]
[1727990685130,4.2426,2357.1,2356.7,0.73055017]
[1727990685430,0.1152677,2357.4,2356.8,0.55]
[1727990685644,4.24226,2357.3,2356.8,0.55]
[1727990685949,4.24226,2357.3,2357.0,0.55]
[1727990686297,4.24226,2357.3,2357.1,0.06363697]
[1727990686730,4.24226,2357.3,2356.9,0.55]
[1727990686916,4.24241,2357.2,2356.9,0.55]
[1727990688619,4.24226,2357.3,2356.9,0.55]
[1727990688827,4.24251,2357.1,2356.9,0.55]
[1727990689231,0.1152677,2357.4,2356.9,0.55]
[1727990689552,0.1152677,2357.4,2357.1,0.55]
[1727990689714,0.1152677,2357.4,2357.2,0.46012313]
[1727990690406,4.3573277,2357.4,2357.2,0.46012313]
[1727990691452,0.1152677,2357.4,2357.3,0.55]
[1727990694867,0.1152677,2357.4,2357.3,0.6348325]
[1727990695040,0.1152677,2357.4,2357.3,1.16857706]
[1727990695239,0.1152677,2357.4,2357.3,1.23162074]
[1727990695641,0.1152677,2357.4,2357.3,1.14678824]
[1727990696376,0.1152677,2357.4,2357.3,5.38892824]
[1727990696950,0.1152677,2357.4,2357.3,1.14678824]
[1727990697255,0.1152677,2357.4,2357.3,1.2316166]
[1727990700369,0.1152677,2357.4,2357.3,8.81462824]
[1727990700910,7.75371014,2359.1,2358.3,0.55]
[1727990700911,5.0404,2358.8,2358.3,0.55]
[1727990701042,4.23979,2358.7,2358.5,0.55]
[1727990701438,4.23979,2358.7,2358.4,0.47905]
[1727990701439,4.23979,2358.7,2358.6,0.61165149]
[1727990701680,4.23979,2358.7,2358.6,0.06165149]
[1727990701841,4.23979,2358.7,2358.1,4.05123133]
[1727990702040,4.23979,2358.7,2358.2,5.72187378]
[1727990702674,4.23938,2358.9,2358.2,5.72187378]
[1727990702900,4.23947,2358.8,2358.3,4.24034]
[1727990703189,4.23947,2358.8,2358.4,0.63466337]
[1727990703546,4.23947,2358.8,2358.6,0.55]
[1727990703987,4.23947,2358.8,2358.7,0.0591702]
[1727990704357,4.23947,2358.8,2358.4,0.63466337]
[1727990704547,4.23947,2358.8,2358.7,0.0591702]
[1727990704749,0.8009,2359.1,2358.2,0.87177113]